fUSD/lending_fUSD_20250109
["ID","MTS","AMOUNT","RATE_DAILY","PERIOD"]
[348324219,1736445059399,-1095.26,0.00010789,2]
[348324220,1736445059408,-577.19,0.00010789,2]
[348324221,1736445059417,-511.6,0.00010789,2]
[348324222,1736445059427,-479.567355,0.00010789,2]
[348324223,1736445059436,-1149.2,0.00010789,2]
[348324224,1736445059446,-500.0,0.00010789,2]
[348324225,1736445059456,-1992.84,0.00010789,2]
[348324226,1736445059469,-832.87,0.00010789,2]
[348324227,1736445059479,-500.0,0.00010789,2]
[348324228,1736445059489,-500.0,0.00010789,2]
[348324229,1736445059498,-822.98,0.00010789,2]
[348324230,1736445059510,-500.0,0.00010789,2]
[348324231,1736445059520,-526.5,0.00010789,2]
[348324232,1736445059531,-500.0,0.00010789,2]
[348324233,1736445059543,-749.02,0.00010789,2]
[348324234,1736445059554,-500.0,0.00010789,2]
[348324235,1736445059564,-609.34,0.00010789,2]
[348324236,1736445059574,-500.0,0.00010789,2]
[348324237,1736445059583,-500.0,0.00010789,2]
[348324238,1736445059593,-500.0,0.00010789,2]
[348324239,1736445059602,-1200.82,0.00010789,2]
[348324240,1736445059617,-500.0,0.00010789,2]
[348324241,1736445059626,-864.01,0.00010789,2]
[348324242,1736445059637,-1068.95,0.00010789,2]
[348324243,1736445059647,-915.32,0.00010789,2]
[348324244,1736445059657,-500.0,0.00010789,2]
[348324245,1736445059667,-661.21,0.00010789,2]
[348324246,1736445059676,-500.0,0.00010789,2]
[348324247,1736445059687,-610.29,0.00010789,2]
[348324248,1736445059697,-500.0,0.00010789,2]
[348324249,1736445059708,-1573.31,0.00010789,2]
[348324250,1736445059718,-500.0,0.00010789,2]
[348324251,1736445059728,-500.0,0.00010789,2]
[348324252,1736445059739,-500.0,0.00010789,2]
[348324253,1736445059750,-500.0,0.00010789,2]
[348324254,1736445059759,-861.03,0.00010789,2]
[348324255,1736445059770,-500.0,0.00010789,2]
[348324256,1736445059780,-3452.34,0.00010789,2]
[348324257,1736445059792,-500.0,0.00010789,2]
[348324258,1736445059802,-1572.61,0.00010789,2]
[348324259,1736445059813,-886.82,0.00010789,2]
[348324260,1736445059823,-503.2,0.00010789,2]
[348324261,1736445059833,-500.0,0.00010789,2]
[348324262,1736445059843,-500.0,0.00010789,2]
[348324263,1736445059853,-500.0,0.00010789,2]
[348324264,1736445059863,-150.0,0.00010832,2]
[348324265,1736445059873,-150.0,0.00010834,2]
[348324266,1736445059882,-569.16,0.00010889,2]
[348324267,1736445059892,-602.69,0.00010889,2]
[348324268,1736445059903,-500.0,0.00010889,2]
[348324269,1736445059913,-500.0,0.00010889,2]
[348324270,1736445059923,-500.0,0.00010889,2]
[348324271,1736445059933,-500.0,0.00010889,2]
[348324272,1736445059945,-895.05,0.00010889,2]
[348324273,1736445059955,-500.0,0.00010889,2]
[348324274,1736445059964,-689.1,0.00010889,2]
[348324275,1736445059974,-500.0,0.00010889,2]
[348324276,1736445059984,-698.8,0.00010889,2]
[348324277,1736445059994,-500.0,0.00010889,2]
[348324278,1736445060004,-500.0,0.00010889,2]
[348324279,1736445060015,-259.39,0.00010889,2]
[348324280,1736445060029,-500.0,0.00010889,2]
[348324281,1736445060042,-500.0,0.00010889,2]
[348324282,1736445060051,-2858.44,0.00010889,2]
[348324283,1736445060061,-2074.84,0.00010889,2]
[348324284,1736445060071,-1487.55,0.00010889,2]
[348324285,1736445060082,-1062.87,0.00010889,2]
[348324286,1736445060092,-2223.86,0.00010889,2]
[348324287,1736445060102,-500.0,0.00010889,2]
[348324288,1736445060112,-703.22,0.00010889,2]
[348324289,1736445060122,-1698.0,0.00010889,2]
[348324290,1736445060132,-732.02,0.00010889,2]
[348324291,1736445060142,-530.24,0.00010889,2]
[348324292,1736445060151,-309.28,0.0001089,2]
[348324293,1736445060161,-500.0,0.0001089,2]
[348324294,1736445060171,-346.83,0.0001089,2]
[348324295,1736445060181,-500.0,0.0001089,2]
[348324296,1736445060190,-500.0,0.0001089,2]
[348324297,1736445060199,-528.97,0.0001089,2]
[348324298,1736445060209,-500.0,0.0001089,2]
[348324299,1736445060220,-710.68,0.0001089,2]
[348324300,1736445060230,-500.0,0.0001089,2]
[348324301,1736445060241,-500.0,0.0001089,2]
[348324302,1736445060251,-500.0,0.0001089,2]
[348324303,1736445060261,-985.92,0.0001089,2]
[348324304,1736445060270,-500.0,0.0001089,2]
[348324305,1736445060280,-500.0,0.0001089,2]
[348324306,1736445060295,-500.0,0.0001089,2]
[348324307,1736445060305,-500.0,0.0001089,2]
[348324308,1736445060316,-500.0,0.0001089,2]
[348324309,1736445060326,-651.26,0.0001089,2]
[348324310,1736445060336,-500.0,0.0001089,2]
[348324311,1736445060346,-668.49,0.0001089,2]
[348324312,1736445060356,-381.46936431,0.0001089,2]
[348324313,1736445060366,-1000.0,0.0001089,2]
[348324314,1736445060376,-500.0,0.0001089,2]
[348324315,1736445060386,-500.0,0.0001089,2]
[348324316,1736445060396,-500.0,0.0001089,2]
[348324317,1736445060405,-500.0,0.0001089,2]
[348324318,1736445060415,-500.0,0.0001089,2]
[348324319,1736445060425,-500.0,0.0001089,2]
[348324320,1736445060435,-1499.7,0.0001089,2]
[348324321,1736445060446,-1437.21,0.0001089,2]
[348324322,1736445060459,-500.0,0.0001089,2]
[348324323,1736445060470,-500.0,0.0001089,2]
[348324324,1736445060481,-500.0,0.0001089,2]
[348324325,1736445060491,-500.0,0.0001089,2]
[348324326,1736445060502,-500.0,0.0001089,2]
[348324327,1736445060512,-500.0,0.0001089,2]
[348324328,1736445060523,-500.0,0.0001089,2]
[348324329,1736445060533,-500.0,0.0001089,2]
[348324330,1736445060547,-500.0,0.0001089,2]
[348324331,1736445060557,-1093.65,0.0001089,2]
[348324332,1736445060567,-500.0,0.0001089,2]
[348324333,1736445060579,-500.0,0.0001089,2]
[348324334,1736445060588,-500.0,0.0001089,2]
[348324335,1736445060599,-500.0,0.0001089,2]
[348324336,1736445060609,-500.0,0.0001089,2]
[348324337,1736445060619,-594.57,0.0001089,2]
[348324338,1736445060628,-500.0,0.0001089,2]
[348324339,1736445060638,-500.0,0.0001089,2]
[348324340,1736445060648,-500.0,0.0001089,2]
[348324341,1736445060658,-631.02,0.0001089,2]
[348324342,1736445060667,-500.0,0.0001089,2]
[348324343,1736445060676,-500.0,0.0001089,2]
[348324344,1736445060686,-500.0,0.0001089,2]
[348324345,1736445060696,-500.0,0.0001089,2]
[348324346,1736445060706,-500.0,0.0001089,2]
[348324347,1736445060716,-619.56,0.0001089,2]
[348324348,1736445060726,-500.0,0.0001089,2]
[348324349,1736445060735,-500.0,0.0001089,2]
[348324350,1736445060746,-500.0,0.0001089,2]
[348324351,1736445060756,-500.0,0.0001089,2]
[348324352,1736445060766,-500.0,0.0001089,2]
[348324353,1736445060776,-500.0,0.0001089,2]
[348324354,1736445060785,-500.0,0.0001089,2]
[348324355,1736445060797,-500.0,0.0001089,2]
[348324356,1736445060807,-500.0,0.0001089,2]
[348324357,1736445060817,-500.0,0.0001089,2]
[348324358,1736445060827,-526.24,0.0001089,2]
[348324359,1736445060836,-500.0,0.0001089,2]
[348324360,1736445060846,-500.0,0.0001089,2]
[348324361,1736445061041,-500.0,0.0001089,2]
[348324362,1736445061051,-737.91,0.0001089,2]
[348324363,1736445061061,-500.0,0.0001089,2]
[348324364,1736445061071,-500.0,0.0001089,2]
[348324365,1736445061081,-611.89,0.0001089,2]
[348324366,1736445061091,-518.73,0.0001089,2]
[348324367,1736445061102,-500.0,0.0001089,2]
[348324368,1736445061113,-500.0,0.0001089,2]
[348324369,1736445061124,-555.32,0.0001089,2]
[348324370,1736445061133,-500.0,0.0001089,2]
[348324371,1736445061143,-500.0,0.0001089,2]
[348324372,1736445061152,-500.0,0.0001089,2]
[348324373,1736445061162,-500.0,0.0001089,2]
[348324374,1736445061171,-500.0,0.0001089,2]
[348324375,1736445061180,-524.35,0.0001089,2]
[348324376,1736445061190,-661.07,0.0001089,2]
[348324377,1736445061200,-500.0,0.0001089,2]
[348324378,1736445061211,-500.0,0.0001089,2]
[348324379,1736445061221,-500.0,0.0001089,2]
[348324380,1736445061231,-591.12,0.0001089,2]
[348324381,1736445061240,-500.0,0.0001089,2]
[348324382,1736445061250,-500.0,0.0001089,2]
[348324383,1736445061260,-646.2,0.0001089,2]
[348324384,1736445061270,-500.0,0.0001089,2]
[348324385,1736445061279,-500.0,0.0001089,2]
[348324386,1736445061291,-500.0,0.0001089,2]
[348324387,1736445061301,-30.14457626,0.0001089,2]
[348324388,1736445062919,-262.7,8.962e-05,2]
[348324389,1736445062930,-18223.3758,9.593e-05,2]
[348324390,1736445062941,-500.0,9.692e-05,2]
[348324391,1736445062953,-500.0,9.692e-05,2]
[348324392,1736445062963,-500.0,9.692e-05,2]
[348324393,1736445062974,-500.565385,9.693e-05,2]
[348324394,1736445062984,-500.0,9.693e-05,2]
[348324395,1736445062993,-500.0,9.693e-05,2]
[348324396,1736445063003,-500.0,9.693e-05,2]
[348324397,1736445063013,-500.0,9.693e-05,2]
[348324398,1736445063022,-500.0,9.693e-05,2]
[348324399,1736445063032,-500.0,9.794e-05,2]
[348324400,1736445063043,-651.04,9.794e-05,2]
[348324401,1736445063054,-500.0,9.966e-05,2]
[348324402,1736445063064,-500.0,9.966e-05,2]
[348324403,1736445063075,-500.0,9.967e-05,2]
[348324404,1736445063085,-322.91805498,9.967e-05,2]
[348324405,1736445063096,-591.57759132,9.967e-05,2]
[348324406,1736445063106,-500.0,9.967e-05,2]
[348324407,1736445063116,-501.18576201,9.967e-05,2]
[348324408,1736445063126,-500.0,0.00010067,2]
[348324409,1736445063136,-500.0,0.00010068,2]
[348324410,1736445063145,-651.04,0.00010068,2]
[348324411,1736445063155,-500.0,0.0001024,2]
[348324412,1736445063165,-500.0,0.0001024,2]
[348324413,1736445063176,-500.0,0.00010241,2]
[348324414,1736445063187,-500.0,0.00010241,2]
[348324415,1736445063197,-500.0,0.00010342,2]
[348324416,1736445063261,-651.04,0.00010342,2]
[348324417,1736445063272,-500.0,0.00010514,2]
[348324418,1736445063282,-500.0,0.00010514,2]
[348324419,1736445063295,-500.0,0.00010515,2]
[348324420,1736445063305,-500.0,0.00010515,2]
[348324421,1736445063315,-500.0,0.00010515,2]
[348324422,1736445063326,-500.0,0.00010616,2]
[348324423,1736445063336,-600.01627834,0.00010788,2]
[348324424,1736445063346,-500.0,0.00010789,2]
[348324425,1736445063357,-500.0,0.00010789,2]
[348324426,1736445063367,-500.0,0.00010789,2]
[348324427,1736445063377,-469.85542374,0.0001089,2]
[348324428,1736445063387,-500.0,0.0001089,2]
[348324429,1736445063397,-500.0,0.0001089,2]
[348324430,1736445063408,-500.0,0.0001089,2]
[348324431,1736445063419,-500.0,0.0001089,2]
[348324432,1736445063429,-500.0,0.0001089,2]
[348324433,1736445063439,-500.0,0.0001089,2]
[348324434,1736445063449,-500.0,0.0001089,2]
[348324435,1736445063458,-500.0,0.0001089,2]
[348324436,1736445063470,-500.0,0.0001089,2]
[348324437,1736445063479,-500.0,0.0001089,2]
[348324438,1736445063490,-500.0,0.0001089,2]
[348324439,1736445063499,-753.77,0.0001089,2]
[348324440,1736445063509,-500.0,0.0001089,2]
[348324441,1736445063519,-745.02,0.0001089,2]
[348324442,1736445063530,-500.0,0.0001089,2]
[348324443,1736445063541,-500.0,0.0001089,2]
[348324444,1736445063551,-500.0,0.0001089,2]
[348324445,1736445063561,-500.0,0.0001089,2]
[348324446,1736445063571,-500.0,0.0001089,2]
[348324447,1736445063582,-592.90386089,0.0001089,2]
[348324448,1736445063592,-500.0,0.0001089,2]
[348324449,1736445063604,-500.0,0.0001089,2]
[348324450,1736445063615,-500.0,0.0001089,2]
[348324451,1736445063625,-587.21,0.0001089,2]
[348324452,1736445063636,-500.0,0.0001089,2]
[348324453,1736445063645,-660.1,0.0001089,2]
[348324454,1736445063655,-500.0,0.0001089,2]
[348324455,1736445063665,-503.73,0.0001089,2]
[348324456,1736445063675,-500.0,0.0001089,2]
[348324457,1736445063685,-500.0,0.0001089,2]
[348324458,1736445063696,-500.0,0.0001089,2]
[348324459,1736445063706,-500.0,0.0001089,2]
[348324460,1736445063717,-500.0,0.0001089,2]
[348324461,1736445063727,-545.73,0.0001089,2]
[348324462,1736445063736,-500.0,0.0001089,2]
[348324463,1736445063746,-500.0,0.0001089,2]
[348324464,1736445063756,-500.0,0.0001089,2]
[348324465,1736445063766,-3242.54,0.0001089,2]
[348324466,1736445063776,-1018.23,0.0001089,2]
[348324467,1736445063786,-500.0,0.0001089,2]
[348324468,1736445063799,-1137.61,0.0001089,2]
[348324469,1736445063809,-500.0,0.0001089,2]
[348324470,1736445063819,-193.31,0.0001089,2]
[348324471,1736445063829,-517.86,0.0001089,2]
[348324472,1736445063839,-500.0,0.0001089,2]
[348324473,1736445063849,-743.81,0.0001089,2]
[348324474,1736445063859,-7151.48,0.0001089,2]
[348324475,1736445063869,-638.87,0.0001089,2]
[348324476,1736445063879,-604.69,0.0001089,2]
[348324477,1736445063889,-500.0,0.0001089,2]
[348324478,1736445063899,-500.0,0.00010891,2]
[348324479,1736445063908,-898.09,0.00010891,2]
[348324480,1736445063918,-500.0,0.00010891,2]
[348324481,1736445063928,-500.0,0.00010891,2]
[348324482,1736445063937,-812.75,0.00010891,2]
[348324483,1736445063948,-1270.57,0.00010891,2]
[348324484,1736445063957,-1551.69,0.00010891,2]
[348324485,1736445063967,-1033.83,0.00010891,2]
[348324486,1736445063977,-2553.98,0.00010891,2]
[348324487,1736445063987,-2053.02,0.00010891,2]
[348324488,1736445063998,-2446.73,0.00010891,2]
[348324489,1736445064008,-1335.79,0.00010891,2]
[348324490,1736445064018,-2728.27,0.00010891,2]
[348324491,1736445064028,-921.37,0.00010891,2]
[348324492,1736445064038,-876.75,0.00010891,2]
[348324493,1736445064050,-1384.37,0.00010891,2]
[348324494,1736445064060,-1491.35,0.00010891,2]
[348324495,1736445064070,-1705.45,0.00010891,2]
[348324496,1736445064080,-1411.08,0.00010891,2]
[348324497,1736445064091,-999.0,0.00010958,2]
[348324498,1736445064101,-1500.0,0.0001096,2]
[348324499,1736445064111,-3900.0,0.0001096,2]
[348324500,1736445064120,-200.0,0.0001097,2]
[348324501,1736445064130,-500.0,0.00010986,2]
[348324502,1736445064139,-150.0,0.00011017,2]
[348324503,1736445064149,-500.0,0.00011053,2]
[348324504,1736445064159,-904.06,0.00011053,2]
[348324505,1736445064169,-582.76,0.00011053,2]
[348324506,1736445064179,-1855.69,0.00011053,2]
[348324507,1736445064188,-1206.64,0.00011053,2]
[348324508,1736445064198,-1539.41,0.00011053,2]
[348324509,1736445064207,-1610.32,0.00011053,2]
[348324510,1736445064217,-2299.09,0.00011053,2]
[348324511,1736445064228,-562.78,0.00011062,2]
[348324512,1736445064238,-2880.05,0.00011062,2]
[348324513,1736445064248,-4014.68,0.00011062,2]
[348324514,1736445064257,-2100.5,0.00011062,2]
[348324515,1736445064268,-500.0,0.00011062,2]
[348324516,1736445064278,-1438.14,0.00011062,2]
[348324517,1736445064287,-487.06673194,0.00011062,2]
[348324518,1736445064318,-273.02906358,0.00010788,2]
[348324519,1736445064342,-226.97093642,0.00010788,2]
[348324520,1736445064352,-224.7589611,0.00011062,2]
[348324521,1736445064363,-2496.219726,0.00011062,2]
[348324522,1736445064375,-77.39458096,0.00011062,2]
[348324523,1736445064384,-500.0,0.00011062,2]
[348324524,1736445064394,-500.0,0.00011062,2]
[348324525,1736445064403,-941.34,0.00011062,2]
[348324526,1736445064413,-500.0,0.00011062,2]
[348324527,1736445064423,-815.78,0.00011063,2]
[348324528,1736445064432,-46.71520021,0.00011063,2]
[348324529,1736445064910,-500.0,9.692e-05,2]
[348324530,1736445064922,-1251.19800757,9.693e-05,2]
[348324531,1736445064931,-500.49552679,9.693e-05,2]
[348324532,1736445064941,-500.0,9.693e-05,2]
[348324533,1736445064953,-500.0,9.693e-05,2]
[348324534,1736445064963,-500.0,9.693e-05,2]
[348324535,1736445064973,-376.17197061,9.966e-05,2]
[348324536,1736445064985,-123.82802939,9.966e-05,2]
[348324537,1736445064995,-500.0,9.966e-05,2]
[348324538,1736445065005,-500.0,9.967e-05,2]
[348324539,1736445065015,-279.04127052,9.967e-05,2]
[348324540,1736445065026,-500.0,9.967e-05,2]
[348324541,1736445065036,-499.96780917,0.0001024,2]
[348324542,1736445065052,-0.03219083,0.0001024,2]
[348324543,1736445065062,-500.0,0.0001024,2]
[348324544,1736445065072,-500.0,0.00010241,2]
[348324545,1736445065083,-500.0,0.00010341,2]
[348324546,1736445065093,-500.0,0.00010514,2]
[348324547,1736445065102,-651.04,0.00010616,2]
[348324548,1736445065113,-651.04,0.0001089,2]
[348324549,1736445065123,-399.68,0.00011062,2]
[348324550,1736445065133,-453.28479979,0.00011063,2]
[348324551,1736445065143,-1168.48,0.00011063,2]
[348324552,1736445065152,-564.15,0.00011063,2]
[348324553,1736445065162,-546.34,0.00011063,2]
[348324554,1736445065171,-500.0,0.00011063,2]
[348324555,1736445065182,-500.0,0.00011063,2]
[348324556,1736445065192,-748.91,0.00011063,2]
[348324557,1736445065201,-500.0,0.00011063,2]
[348324558,1736445065211,-555.4,0.00011063,2]
[348324559,1736445065222,-500.0,0.00011063,2]
[348324560,1736445065234,-449.69081957,0.00011063,2]
[348324561,1736445065265,-500.0,0.00010241,2]
[348324562,1736445065275,-500.0,0.00010788,2]
[348324563,1736445065285,-50.30918043,0.00011063,2]
[348324564,1736445065298,-715.43,0.00011063,2]
[348324565,1736445065308,-500.0,0.00011063,2]
[348324566,1736445065318,-500.0,0.00011063,2]
[348324567,1736445065328,-216.20612098,0.00011063,2]
[348324568,1736445065340,-283.79387902,0.00011063,2]
[348324569,1736445065350,-54.70555929,0.00011063,2]
[348324570,1736445065364,-1024.34444071,0.00011063,2]
[348324571,1736445065374,-500.0,0.00011063,2]
[348324572,1736445065384,-500.0,0.00011063,2]
[348324573,1736445065394,-588.27,0.00011063,2]
[348324574,1736445065404,-500.0,0.00011063,2]
[348324575,1736445065414,-500.0,0.00011063,2]
[348324576,1736445065424,-500.0,0.00011063,2]
[348324577,1736445065434,-668.81,0.00011063,2]
[348324578,1736445065443,-723.52,0.00011063,2]
[348324579,1736445065454,-500.0,0.00011063,2]
[348324580,1736445065465,-500.0,0.00011063,2]
[348324581,1736445065475,-111.41255929,0.00011063,2]
[348324582,1736445065487,-606.59744071,0.00011063,2]
[348324583,1736445065497,-66.67255928,0.00011063,2]
[348324584,1736445065511,-637.9,0.00011063,2]
[348324585,1736445065523,-279.68744072,0.00011063,2]
[348324586,1736445065533,-240.11255928,0.00011063,2]
[348324587,1736445065550,-259.88744072,0.00011063,2]
[348324588,1736445065561,-30.27255927,0.00011063,2]
[348324589,1736445065573,-368.5302207,0.00011063,2]
[348324590,1736445065585,-194.86722003,0.00011063,2]
[348324591,1736445065595,-140.47477997,0.00011063,2]
[348324592,1736445065618,-500.0,9.692e-05,2]
[348324593,1736445065628,-359.52522003,0.00011063,2]
[348324594,1736445065639,-1724.41,0.00011063,2]
[348324595,1736445065650,-500.0,0.00011063,2]
[348324596,1736445065660,-851.84,0.00011063,2]
[348324597,1736445065670,-500.0,0.00011063,2]
[348324598,1736445065680,-500.0,0.00011063,2]
[348324599,1736445065690,-517.17,0.00011063,2]
[348324600,1736445065700,-500.0,0.00011063,2]
[348324601,1736445065711,-847.67,0.00011063,2]
[348324602,1736445065721,-500.0,0.00011063,2]
[348324603,1736445065732,-500.0,0.00011063,2]
[348324604,1736445065742,-500.0,0.00011063,2]
[348324605,1736445065752,-1132.14,0.00011063,2]
[348324606,1736445065762,-686.92,0.00011063,2]
[348324607,1736445065771,-500.0,0.00011063,2]
[348324608,1736445065782,-658.3,0.00011063,2]
[348324609,1736445065796,-500.0,0.00011063,2]
[348324610,1736445065807,-500.0,0.00011063,2]
[348324611,1736445065818,-500.0,0.00011063,2]
[348324612,1736445065829,-500.0,0.00011063,2]
[348324613,1736445065839,-674.56,0.00011063,2]
[348324614,1736445065849,-500.0,0.00011063,2]
[348324615,1736445065859,-472.13225997,0.00011063,2]
[348324616,1736445065871,-697.90774003,0.00011063,2]
[348324617,1736445065883,-500.0,0.00011063,2]
[348324618,1736445065892,-500.0,0.00011063,2]
[348324619,1736445065903,-500.0,0.00011063,2]
[348324620,1736445065914,-500.0,0.00011063,2]
[348324621,1736445065924,-500.0,0.00011063,2]
[348324622,1736445065934,-500.0,0.00011063,2]
[348324623,1736445065946,-629.29,0.00011063,2]
[348324624,1736445065957,-701.1,0.00011063,2]
[348324625,1736445065967,-500.0,0.00011063,2]
[348324626,1736445065977,-823.15,0.00011063,2]
[348324627,1736445065987,-500.0,0.00011063,2]
[348324628,1736445065996,-500.0,0.00011063,2]
[348324629,1736445066007,-633.79,0.00011063,2]
[348324630,1736445066017,-1127.98,0.00011063,2]
[348324631,1736445066027,-500.0,0.00011063,2]
[348324632,1736445066038,-500.0,0.00011063,2]
[348324633,1736445066050,-582.46,0.00011063,2]
[348324634,1736445066061,-500.0,0.00011063,2]
[348324635,1736445066071,-500.0,0.00011063,2]
[348324636,1736445066081,-797.05,0.00011063,2]
[348324637,1736445066091,-500.0,0.00011063,2]
[348324638,1736445066102,-500.0,0.00011063,2]
[348324639,1736445066113,-542.96,0.00011063,2]
[348324640,1736445066123,-1602.35,0.00011063,2]
[348324641,1736445066134,-646.67,0.00011063,2]
[348324642,1736445066144,-3647.11,0.00011063,2]
[348324643,1736445066154,-500.0,0.00011063,2]
[348324644,1736445066165,-1094.76,0.00011063,2]
[348324645,1736445066175,-500.0,0.00011063,2]
[348324646,1736445066186,-740.12,0.00011063,2]
[348324647,1736445066196,-1139.06,0.00011063,2]
[348324648,1736445066206,-804.02,0.00011063,2]
[348324649,1736445066216,-500.0,0.00011063,2]
[348324650,1736445066226,-641.62,0.00011063,2]
[348324651,1736445066236,-500.0,0.00011063,2]
[348324652,1736445066245,-2097.6,0.00011063,2]
[348324653,1736445066255,-500.0,0.00011063,2]
[348324654,1736445066265,-7895.7,0.00011063,2]
[348324655,1736445066276,-500.0,0.00011063,2]
[348324656,1736445066286,-3771.66,0.00011063,2]
[348324657,1736445066299,-500.0,0.00011063,2]
[348324658,1736445066309,-500.0,0.00011063,2]
[348324659,1736445066320,-500.0,0.00011063,2]
[348324660,1736445066330,-500.0,0.00011063,2]
[348324661,1736445066340,-870.63,0.00011063,2]
[348324662,1736445066351,-628.83,0.00011063,2]
[348324663,1736445066361,-2614.75,0.00011063,2]
[348324664,1736445066371,-662.16,0.00011063,2]
[348324665,1736445066380,-500.0,0.00011063,2]
[348324666,1736445066390,-436.680334,0.00011063,2]
[348324667,1736445066400,-2292.14,0.00011063,2]
[348324668,1736445066410,-500.0,0.00011063,2]
[348324669,1736445066419,-769.38,0.00011063,2]
[348324670,1736445066429,-1401.24,0.00011063,2]
[348324671,1736445066439,-500.0,0.00011063,2]
[348324672,1736445066450,-2353.93,0.00011063,2]
[348324673,1736445066462,-608.78,0.00011063,2]
[348324674,1736445066473,-1095.26,0.00011063,2]
[348324675,1736445066483,-577.19,0.00011063,2]
[348324676,1736445066493,-511.6,0.00011063,2]
[348324677,1736445066504,-479.567355,0.00011063,2]
[348324678,1736445066515,-1149.2,0.00011063,2]
[348324679,1736445066525,-500.0,0.00011063,2]
[348324680,1736445066536,-1992.84,0.00011063,2]
[348324681,1736445066551,-832.87,0.00011063,2]
[348324682,1736445066562,-500.0,0.00011063,2]
[348324683,1736445066573,-151.56,0.00011063,2]
[348324684,1736445066583,-822.98,0.00011063,2]
[348324685,1736445066593,-500.0,0.00011063,2]
[348324686,1736445066603,-500.0,0.00011063,2]
[348324687,1736445066613,-749.02,0.00011063,2]
[348324688,1736445066623,-640.35,0.00011063,2]
[348324689,1736445066634,-500.0,0.00011063,2]
[348324690,1736445066644,-609.34,0.00011063,2]
[348324691,1736445066654,-500.0,0.00011063,2]
[348324692,1736445066665,-500.0,0.00011063,2]
[348324693,1736445066675,-1200.82,0.00011063,2]
[348324694,1736445066685,-500.0,0.00011063,2]
[348324695,1736445066695,-864.01,0.00011063,2]
[348324696,1736445066706,-1068.95,0.00011063,2]
[348324697,1736445066716,-915.32,0.00011063,2]
[348324698,1736445066726,-500.0,0.00011063,2]
[348324699,1736445066736,-661.21,0.00011063,2]
[348324700,1736445066745,-500.0,0.00011063,2]
[348324701,1736445066755,-610.29,0.00011063,2]
[348324702,1736445066766,-500.0,0.00011063,2]
[348324703,1736445066776,-1573.31,0.00011063,2]
[348324704,1736445066787,-500.0,0.00011063,2]
[348324705,1736445066799,-500.0,0.00011063,2]
[348324706,1736445066810,-500.0,0.00011063,2]
[348324707,1736445066820,-500.0,0.00011063,2]
[348324708,1736445066831,-861.03,0.00011063,2]
[348324709,1736445066842,-500.0,0.00011063,2]
[348324710,1736445066852,-3452.34,0.00011063,2]
[348324711,1736445066862,-500.0,0.00011063,2]
[348324712,1736445066873,-1572.61,0.00011063,2]
[348324713,1736445066884,-886.82,0.00011063,2]
[348324714,1736445066894,-500.0,0.00011063,2]
[348324715,1736445066904,-500.0,0.00011063,2]
[348324716,1736445066915,-500.0,0.00011063,2]
[348324717,1736445066925,-263.65066412,0.00011063,2]
[348324718,1736445066940,-236.34933588,0.00011063,2]